[Event "Titled Tuesday Blitz June 28 Early 2022"]
[White "Jeet, Jain"]
[Black "Bortnyk, Mykola"]
[WhiteFideId "5073022"]
[BlackFideId "14120836"]
[WhiteElo "2055"]
[BlackElo "2582"]
[Result "0-1"]
[Round "03"]
[TimeControl "180+1"]
[Date "2022.06.28"]
[WhiteClock "0:00:54"]
[BlackClock "0:01:21"]

1. Nf3 {[%clk 0:03:00]}  d5 {[%clk 0:02:58]} 2. e3 {[%clk 0:03:00]}  Nc6 {[%clk 0:02:53]} 3. b3 {[%clk 0:03:00]}  Bg4 {[%clk 0:02:47]} 4. d4 {[%clk 0:02:58]}  e5 {[%clk 0:02:44]} 5. dxe5 {[%clk 0:02:57]}  Nxe5 {[%clk 0:02:45]} 6. Bb2 {[%clk 0:02:56]}  Nxf3+ {[%clk 0:02:37]} 7. gxf3 {[%clk 0:02:57]}  Bh5 {[%clk 0:02:38]} 8. Be2 {[%clk 0:02:56]}  Nf6 {[%clk 0:02:34]} 9. f4 {[%clk 0:02:56]}  Bxe2 {[%clk 0:02:27]} 10. Qxe2 {[%clk 0:02:57]}  c6 {[%clk 0:02:23]} 11. Nd2 {[%clk 0:02:55]}  Bb4 {[%clk 0:02:19]} 12. a3 {[%clk 0:02:54]}  Bxd2+ {[%clk 0:02:19]} 13. Qxd2 {[%clk 0:02:54]}  Ne4 {[%clk 0:02:18]} 14. Qe2 {[%clk 0:02:52]}  Qh4 {[%clk 0:02:08]} 15. Qf3 {[%clk 0:02:21]}  f6 {[%clk 0:02:04]} 16. c4 {[%clk 0:02:13]}  O-O-O {[%clk 0:01:44]} 17. cxd5 {[%clk 0:02:13]}  Rhe8 {[%clk 0:01:44]} 18. h3 {[%clk 0:01:59]}  Rxd5 {[%clk 0:01:41]} 19. Qg4+ {[%clk 0:01:16]}  Qxg4 {[%clk 0:01:41]} 20. hxg4 {[%clk 0:01:17]}  Rd2 {[%clk 0:01:37]} 21. Bd4 {[%clk 0:01:10]}  Rxf2 {[%clk 0:01:33]} 22. Rxh7 {[%clk 0:01:09]}  Rc2 {[%clk 0:01:24]} 23. Rxg7 {[%clk 0:01:02]}  Rh8 {[%clk 0:01:21]} 24. Kd1 {[%clk 0:00:54]}  Rd2+ {[%clk 0:01:21]} 0-1


[Site "https://www.chess.com"]

[Event "Titled Tuesday Blitz June 28 Early 2022"]
[White "Jia, Haoxiang"]
[Black "Zochowski, Kacper"]
[WhiteFideId "8602999"]
[BlackFideId "1125494"]
[WhiteElo "2622"]
[BlackElo "2214"]
[Result "0-1"]
[Round "03"]
[TimeControl "180+1"]
[Date "2022.06.28"]
[WhiteClock "0:00:02"]
[BlackClock "0:00:18"]

1. e4 {[%clk 0:02:58]}  c5 {[%clk 0:02:59]} 2. Nc3 {[%clk 0:02:57]}  Nc6 {[%clk 0:02:59]} 3. g3 {[%clk 0:02:56]}  g6 {[%clk 0:02:59]} 4. Bg2 {[%clk 0:02:57]}  Bg7 {[%clk 0:02:59]} 5. d3 {[%clk 0:02:58]}  d6 {[%clk 0:02:58]} 6. Be3 {[%clk 0:02:58]}  Rb8 {[%clk 0:02:59]} 7. Qd2 {[%clk 0:02:52]}  b5 {[%clk 0:02:58]} 8. Nge2 {[%clk 0:02:51]}  b4 {[%clk 0:02:58]} 9. Nd1 {[%clk 0:02:52]}  Nd4 {[%clk 0:02:57]} 10. O-O {[%clk 0:02:40]}  e6 {[%clk 0:02:40]} 11. f4 {[%clk 0:02:13]}  Ne7 {[%clk 0:02:38]} 12. a3 {[%clk 0:01:46]}  bxa3 {[%clk 0:02:12]} 13. Rxa3 {[%clk 0:01:46]}  Qc7 {[%clk 0:02:11]} 14. c3 {[%clk 0:01:45]}  Ndc6 {[%clk 0:02:09]} 15. Nf2 {[%clk 0:01:36]}  O-O {[%clk 0:02:07]} 16. d4 {[%clk 0:01:33]}  cxd4 {[%clk 0:02:01]} 17. Nxd4 {[%clk 0:01:31]}  Rd8 {[%clk 0:01:54]} 18. Rfa1 {[%clk 0:01:30]}  a5 {[%clk 0:01:32]} 19. Nd3 {[%clk 0:01:12]}  Ba6 {[%clk 0:01:22]} 20. Ne1 {[%clk 0:00:30]}  Bc4 {[%clk 0:01:11]} 21. Nef3 {[%clk 0:00:30]}  Rb7 {[%clk 0:01:04]} 22. Nxc6 {[%clk 0:00:29]}  Nxc6 {[%clk 0:01:04]} 23. Nd4 {[%clk 0:00:29]}  Nxd4 {[%clk 0:01:02]} 24. Bxd4 {[%clk 0:00:29]}  e5 {[%clk 0:00:58]} 25. Be3 {[%clk 0:00:19]}  Rdb8 {[%clk 0:00:58]} 26. Rxa5 {[%clk 0:00:17]}  Rxb2 {[%clk 0:00:57]} 27. Qc1 {[%clk 0:00:16]}  Bd3 {[%clk 0:00:52]} 28. Ra8 {[%clk 0:00:14]}  h5 {[%clk 0:00:44]} 29. Rxb8+ {[%clk 0:00:14]}  Rxb8 {[%clk 0:00:39]} 30. Bf1 {[%clk 0:00:13]}  Bxf1 {[%clk 0:00:37]} 31. Kxf1 {[%clk 0:00:14]}  Qc4+ {[%clk 0:00:34]} 32. Kf2 {[%clk 0:00:14]}  Qxe4 {[%clk 0:00:34]} 33. Qd2 {[%clk 0:00:14]}  exf4 {[%clk 0:00:31]} 34. gxf4 {[%clk 0:00:14]}  Bf6 {[%clk 0:00:28]} 35. Rd1 {[%clk 0:00:13]}  Bh4+ {[%clk 0:00:28]} 36. Kg1 {[%clk 0:00:14]}  Rb2 {[%clk 0:00:19]} 37. Qd5 {[%clk 0:00:02]}  Qxe3+ {[%clk 0:00:18]} 0-1


[Site "https://www.chess.com"]

[Event "Titled Tuesday Blitz June 28 Early 2022"]
[White "Jiganchine, Roman"]
[Black "Elgersma, Onno"]
[WhiteFideId "2603667"]
[BlackFideId "1053531"]
[WhiteElo "2272"]
[BlackElo "2304"]
[Result "0-1"]
[Round "03"]
[TimeControl "180+1"]
[Date "2022.06.28"]
[WhiteClock "0:00:02"]
[BlackClock "0:00:15"]

1. Nf3 {[%clk 0:03:00]}  Nf6 {[%clk 0:03:00]} 2. c4 {[%clk 0:02:57]}  c5 {[%clk 0:03:00]} 3. e3 {[%clk 0:02:56]}  g6 {[%clk 0:02:59]} 4. d4 {[%clk 0:02:56]}  cxd4 {[%clk 0:02:59]} 5. exd4 {[%clk 0:02:56]}  d5 {[%clk 0:02:59]} 6. Nc3 {[%clk 0:02:50]}  Bg7 {[%clk 0:03:00]} 7. Qb3 {[%clk 0:02:49]}  dxc4 {[%clk 0:02:44]} 8. Bxc4 {[%clk 0:02:48]}  O-O {[%clk 0:02:44]} 9. O-O {[%clk 0:02:45]}  Nc6 {[%clk 0:02:43]} 10. Ne5 {[%clk 0:02:28]}  e6 {[%clk 0:02:12]} 11. Nxc6 {[%clk 0:02:21]}  bxc6 {[%clk 0:02:12]} 12. Be3 {[%clk 0:02:18]}  Nd5 {[%clk 0:02:11]} 13. Rad1 {[%clk 0:02:11]}  a5 {[%clk 0:02:02]} 14. Ne4 {[%clk 0:02:03]}  a4 {[%clk 0:01:37]} 15. Qd3 {[%clk 0:01:59]}  Rb8 {[%clk 0:01:36]} 16. b3 {[%clk 0:01:48]}  Nb4 {[%clk 0:01:31]} 17. Qe2 {[%clk 0:01:46]}  axb3 {[%clk 0:01:26]} 18. axb3 {[%clk 0:01:45]}  Ra8 {[%clk 0:01:24]} 19. Nc5 {[%clk 0:01:35]}  Ra2 {[%clk 0:01:20]} 20. Qf3 {[%clk 0:01:34]}  Nd5 {[%clk 0:01:20]} 21. h3 {[%clk 0:01:06]}  Qh4 {[%clk 0:01:13]} 22. Ra1 {[%clk 0:00:53]}  Rxa1 {[%clk 0:01:10]} 23. Rxa1 {[%clk 0:00:53]}  Bxd4 {[%clk 0:01:08]} 24. g3 {[%clk 0:00:30]}  Qf6 {[%clk 0:00:37]} 25. Qxf6 {[%clk 0:00:26]}  Bxf6 {[%clk 0:00:38]} 26. Re1 {[%clk 0:00:19]}  Nxe3 {[%clk 0:00:36]} 27. fxe3 {[%clk 0:00:16]}  Rd8 {[%clk 0:00:36]} 28. Ne4 {[%clk 0:00:15]}  Be5 {[%clk 0:00:36]} 29. g4 {[%clk 0:00:09]}  Kg7 {[%clk 0:00:32]} 30. Re2 {[%clk 0:00:08]}  h6 {[%clk 0:00:32]} 31. Kg2 {[%clk 0:00:08]}  f5 {[%clk 0:00:23]} 32. Nc5 {[%clk 0:00:08]}  Kf6 {[%clk 0:00:23]} 33. Nd3 {[%clk 0:00:07]}  Bc7 {[%clk 0:00:17]} 34. e4 {[%clk 0:00:07]}  e5 {[%clk 0:00:17]} 35. gxf5 {[%clk 0:00:07]}  gxf5 {[%clk 0:00:18]} 36. Nc5 {[%clk 0:00:06]}  f4 {[%clk 0:00:17]} 37. Kf3 {[%clk 0:00:05]}  Bb6 {[%clk 0:00:14]} 38. b4 {[%clk 0:00:04]}  Bxc5 {[%clk 0:00:14]} 39. bxc5 {[%clk 0:00:04]}  Rd4 {[%clk 0:00:15]} 40. Rc2 {[%clk 0:00:04]}  Bxh3 {[%clk 0:00:14]} 41. Ba6 {[%clk 0:00:04]}  Be6 {[%clk 0:00:13]} 42. Bb7 {[%clk 0:00:03]}  Rd8 {[%clk 0:00:12]} 43. Bxc6 {[%clk 0:00:03]}  Rc8 {[%clk 0:00:12]} 44. Bd5 {[%clk 0:00:03]}  Rc7 {[%clk 0:00:13]} 45. c6 {[%clk 0:00:03]}  Ke7 {[%clk 0:00:13]} 46. Rh2 {[%clk 0:00:02]}  Bxd5 {[%clk 0:00:13]} 47. exd5 {[%clk 0:00:02]}  Kd6 {[%clk 0:00:14]} 48. Ke4 {[%clk 0:00:03]}  Rh7 {[%clk 0:00:13]} 49. Rc2 {[%clk 0:00:03]}  h5 {[%clk 0:00:14]} 50. Rg2 {[%clk 0:00:02]}  h4 {[%clk 0:00:14]} 51. Rg6+ {[%clk 0:00:02]}  Kc5 {[%clk 0:00:15]} 52. Kxe5 {[%clk 0:00:02]}  h3 {[%clk 0:00:15]} 53. Rg1 {[%clk 0:00:02]}  h2 {[%clk 0:00:15]} 54. Rc1+ {[%clk 0:00:02]}  Kb5 {[%clk 0:00:14]} 55. Rh1 {[%clk 0:00:02]}  f3 {[%clk 0:00:15]} 56. Kd6 {[%clk 0:00:02]}  f2 {[%clk 0:00:15]} 57. c7 {[%clk 0:00:02]}  Kb6 {[%clk 0:00:15]} 0-1


[Site "https://www.chess.com"]

[Event "Titled Tuesday Blitz June 28 Early 2022"]
[White "Jobava, Baadur"]
[Black "McCoy, Owen"]
[WhiteFideId "13601520"]
[BlackFideId "30924502"]
[WhiteElo "2617"]
[BlackElo "2536"]
[Result "1-0"]
[Round "03"]
[TimeControl "180+1"]
[Date "2022.06.28"]
[WhiteClock "0:02:52"]
[BlackClock "0:00:37"]

1. b3 {[%clk 0:03:00]}  e5 {[%clk 0:02:56]} 2. Bb2 {[%clk 0:02:57]}  f6 {[%clk 0:02:53]} 3. e3 {[%clk 0:02:55]}  Nh6 {[%clk 0:02:44]} 4. Ne2 {[%clk 0:02:55]}  Nf7 {[%clk 0:02:42]} 5. d4 {[%clk 0:02:54]}  d6 {[%clk 0:02:41]} 6. c4 {[%clk 0:02:54]}  Nc6 {[%clk 0:02:39]} 7. Nbc3 {[%clk 0:02:54]}  g6 {[%clk 0:02:36]} 8. g3 {[%clk 0:02:54]}  Bg7 {[%clk 0:02:36]} 9. Bg2 {[%clk 0:02:55]}  O-O {[%clk 0:02:37]} 10. O-O {[%clk 0:02:56]}  f5 {[%clk 0:02:33]} 11. Qd2 {[%clk 0:02:52]}  e4 {[%clk 0:02:31]} 12. f3 {[%clk 0:02:51]}  exf3 {[%clk 0:02:30]} 13. Bxf3 {[%clk 0:02:52]}  Ng5 {[%clk 0:02:20]} 14. Bg2 {[%clk 0:02:53]}  Qe8 {[%clk 0:02:13]} 15. Nf4 {[%clk 0:02:53]}  a6 {[%clk 0:01:50]} 16. Rae1 {[%clk 0:02:52]}  Kh8 {[%clk 0:01:45]} 17. h4 {[%clk 0:02:51]}  Nf7 {[%clk 0:01:44]} 18. Ncd5 {[%clk 0:02:51]}  Qd8 {[%clk 0:01:38]} 19. e4 {[%clk 0:02:51]}  fxe4 {[%clk 0:01:31]} 20. Bxe4 {[%clk 0:02:52]}  Nh6 {[%clk 0:01:00]} 21. Bxg6 {[%clk 0:02:49]}  hxg6 {[%clk 0:00:51]} 22. Nxg6+ {[%clk 0:02:50]}  Kh7 {[%clk 0:00:46]} 23. Nxf8+ {[%clk 0:02:51]}  Bxf8 {[%clk 0:00:46]} 24. Nf6+ {[%clk 0:02:51]}  Kh8 {[%clk 0:00:41]} 25. Re8 {[%clk 0:02:51]}  Qxe8 {[%clk 0:00:37]} 26. Nxe8 {[%clk 0:02:52]} 1-0


[Site "https://www.chess.com"]

[Event "Titled Tuesday Blitz June 28 Early 2022"]
[White "Jubin Jimmy"]
[Black "Artemenko, Oleg"]
[WhiteFideId "46686614"]
[BlackFideId "14201798"]
[WhiteElo "2219"]
[BlackElo "2287"]
[Result "0-1"]
[Round "03"]
[TimeControl "180+1"]
[Date "2022.06.28"]
[WhiteClock "0:00:27"]
[BlackClock "0:00:09"]

1. d4 {[%clk 0:03:00]}  Nf6 {[%clk 0:02:58]} 2. c4 {[%clk 0:03:01]}  e6 {[%clk 0:02:58]} 3. Nc3 {[%clk 0:03:01]}  c5 {[%clk 0:02:58]} 4. d5 {[%clk 0:03:00]}  exd5 {[%clk 0:02:58]} 5. cxd5 {[%clk 0:03:01]}  d6 {[%clk 0:02:59]} 6. Nf3 {[%clk 0:03:01]}  g6 {[%clk 0:02:59]} 7. Bf4 {[%clk 0:03:00]}  Bg7 {[%clk 0:02:59]} 8. h3 {[%clk 0:03:00]}  O-O {[%clk 0:02:58]} 9. e3 {[%clk 0:03:00]}  Na6 {[%clk 0:02:57]} 10. Be2 {[%clk 0:02:57]}  Nc7 {[%clk 0:02:57]} 11. a4 {[%clk 0:02:56]}  b6 {[%clk 0:02:57]} 12. O-O {[%clk 0:02:55]}  Rb8 {[%clk 0:02:57]} 13. Bh2 {[%clk 0:02:53]}  a6 {[%clk 0:02:56]} 14. Nd2 {[%clk 0:02:50]}  b5 {[%clk 0:02:55]} 15. axb5 {[%clk 0:02:47]}  axb5 {[%clk 0:02:56]} 16. Nde4 {[%clk 0:02:46]}  Nxe4 {[%clk 0:02:52]} 17. Nxe4 {[%clk 0:02:47]}  Ne8 {[%clk 0:02:53]} 18. Qd2 {[%clk 0:02:45]}  Qb6 {[%clk 0:02:46]} 19. Ra2 {[%clk 0:02:29]}  Bf5 {[%clk 0:02:43]} 20. Nc3 {[%clk 0:02:21]}  Nc7 {[%clk 0:02:41]} 21. Rfa1 {[%clk 0:02:17]}  Rfe8 {[%clk 0:02:09]} 22. Kh1 {[%clk 0:01:49]}  Bd7 {[%clk 0:02:02]} 23. Bg3 {[%clk 0:01:40]}  f5 {[%clk 0:01:27]} 24. Bd3 {[%clk 0:01:33]}  c4 {[%clk 0:01:20]} 25. Bf1 {[%clk 0:01:27]}  Ra8 {[%clk 0:01:17]} 26. Rxa8 {[%clk 0:01:24]}  Rxa8 {[%clk 0:01:18]} 27. Rxa8+ {[%clk 0:01:22]}  Nxa8 {[%clk 0:01:19]} 28. e4 {[%clk 0:01:23]}  b4 {[%clk 0:01:04]} 29. Nd1 {[%clk 0:01:23]}  Qc5 {[%clk 0:00:42]} 30. Qc1 {[%clk 0:01:11]}  Nb6 {[%clk 0:00:38]} 31. exf5 {[%clk 0:01:07]}  Bxf5 {[%clk 0:00:33]} 32. Ne3 {[%clk 0:01:07]}  Bd3 {[%clk 0:00:16]} 33. Bxd3 {[%clk 0:01:06]}  cxd3 {[%clk 0:00:17]} 34. Qd2 {[%clk 0:01:07]}  Nxd5 {[%clk 0:00:14]} 35. Qxd3 {[%clk 0:01:05]}  Nxe3 {[%clk 0:00:14]} 36. fxe3 {[%clk 0:01:05]}  d5 {[%clk 0:00:13]} 37. b3 {[%clk 0:01:02]}  Bf6 {[%clk 0:00:10]} 38. Qa6 {[%clk 0:00:55]}  Kf7 {[%clk 0:00:10]} 39. Qb7+ {[%clk 0:00:52]}  Be7 {[%clk 0:00:10]} 40. Bf2 {[%clk 0:00:48]}  Qc1+ {[%clk 0:00:08]} 41. Kh2 {[%clk 0:00:48]}  Qd2 {[%clk 0:00:08]} 42. Bg3 {[%clk 0:00:45]}  Qxe3 {[%clk 0:00:08]} 43. Qxd5+ {[%clk 0:00:45]}  Qe6 {[%clk 0:00:09]} 44. Qd3 {[%clk 0:00:45]}  h5 {[%clk 0:00:08]} 45. Bf4 {[%clk 0:00:41]}  Qf6 {[%clk 0:00:07]} 46. Kg3 {[%clk 0:00:38]}  h4+ {[%clk 0:00:07]} 47. Kg4 {[%clk 0:00:35]}  Qe6+ {[%clk 0:00:08]} 48. Kf3 {[%clk 0:00:35]}  Qc6+ {[%clk 0:00:09]} 49. Qe4 {[%clk 0:00:32]}  Qc3+ {[%clk 0:00:09]} 50. Qe3 {[%clk 0:00:30]}  Qc6+ {[%clk 0:00:09]} 51. Ke2 {[%clk 0:00:31]}  Qxg2+ {[%clk 0:00:09]} 52. Kd3 {[%clk 0:00:31]}  Qd5+ {[%clk 0:00:09]} 53. Ke2 {[%clk 0:00:28]}  g5 {[%clk 0:00:08]} 54. Bc7 {[%clk 0:00:25]}  Bf6 {[%clk 0:00:08]} 55. Bb6 {[%clk 0:00:18]}  Kg6 {[%clk 0:00:08]} 56. Bc5 {[%clk 0:00:18]}  Kf5 {[%clk 0:00:08]} 57. Bxb4 {[%clk 0:00:19]}  Qg2+ {[%clk 0:00:07]} 58. Kd3 {[%clk 0:00:19]}  Qf1+ {[%clk 0:00:06]} 59. Kc2 {[%clk 0:00:18]}  Qg2+ {[%clk 0:00:06]} 60. Kd3 {[%clk 0:00:19]}  Qd5+ {[%clk 0:00:06]} 61. Ke2 {[%clk 0:00:19]}  Bd4 {[%clk 0:00:06]} 62. Qf3+ {[%clk 0:00:19]}  Qxf3+ {[%clk 0:00:05]} 63. Kxf3 {[%clk 0:00:20]}  Be5 {[%clk 0:00:05]} 64. Bd2 {[%clk 0:00:20]}  Bb8 {[%clk 0:00:05]} 65. b4 {[%clk 0:00:21]}  Bc7 {[%clk 0:00:05]} 66. b5 {[%clk 0:00:22]}  Bb6 {[%clk 0:00:06]} 67. Be3 {[%clk 0:00:22]}  Bc7 {[%clk 0:00:05]} 68. b6 {[%clk 0:00:23]}  Bd6 {[%clk 0:00:05]} 69. Bc5 {[%clk 0:00:23]}  Bxc5 {[%clk 0:00:05]} 70. b7 {[%clk 0:00:24]}  Bd6 {[%clk 0:00:05]} 71. Ke2 {[%clk 0:00:24]}  Kf4 {[%clk 0:00:05]} 72. Kf2 {[%clk 0:00:24]}  Bb8 {[%clk 0:00:06]} 73. Kg2 {[%clk 0:00:25]}  Ke3 {[%clk 0:00:06]} 74. Kg1 {[%clk 0:00:25]}  Kf3 {[%clk 0:00:07]} 75. Kh1 {[%clk 0:00:26]}  Kg3 {[%clk 0:00:08]} 76. Kg1 {[%clk 0:00:27]}  Kxh3 {[%clk 0:00:09]} 0-1


[Site "https://www.chess.com"]

[Event "Titled Tuesday Blitz June 28 Early 2022"]
[White "Kanyamarala, Tarun"]
[Black "Jakubowska, Anna"]
[WhiteFideId "45004714"]
[BlackFideId "1121952"]
[WhiteElo "2219"]
[BlackElo "1878"]
[Result "0-1"]
[Round "03"]
[TimeControl "180+1"]
[Date "2022.06.28"]
[WhiteClock "0:01:24"]
[BlackClock "0:01:28"]

1. Nf3 {[%clk 0:03:00]}  f5 {[%clk 0:02:58]} 2. d3 {[%clk 0:02:58]}  d5 {[%clk 0:02:53]} 3. c4 {[%clk 0:02:44]}  c6 {[%clk 0:02:47]} 4. g3 {[%clk 0:02:41]}  Nf6 {[%clk 0:02:45]} 5. Bg2 {[%clk 0:02:37]}  g6 {[%clk 0:02:45]} 6. O-O {[%clk 0:02:30]}  Bg7 {[%clk 0:02:44]} 7. Nbd2 {[%clk 0:02:28]}  O-O {[%clk 0:02:44]} 8. e4 {[%clk 0:02:17]}  dxe4 {[%clk 0:02:43]} 9. dxe4 {[%clk 0:02:17]}  fxe4 {[%clk 0:02:31]} 10. Ng5 {[%clk 0:02:15]}  e3 {[%clk 0:02:30]} 11. fxe3 {[%clk 0:02:13]}  h6 {[%clk 0:02:21]} 12. Ngf3 {[%clk 0:02:13]}  Be6 {[%clk 0:02:16]} 13. Ne5 {[%clk 0:02:07]}  g5 {[%clk 0:02:10]} 14. Ndf3 {[%clk 0:02:04]}  Nbd7 {[%clk 0:02:05]} 15. Nd4 {[%clk 0:01:55]}  Nxe5 {[%clk 0:02:00]} 16. Nxe6 {[%clk 0:01:55]}  Qxd1 {[%clk 0:01:51]} 17. Rxd1 {[%clk 0:01:55]}  Rf7 {[%clk 0:01:47]} 18. b3 {[%clk 0:01:52]}  Nfg4 {[%clk 0:01:39]} 19. h3 {[%clk 0:01:47]}  Nf3+ {[%clk 0:01:31]} 20. Kh1 {[%clk 0:01:24]}  Nf2# {[%clk 0:01:28]} 0-1


[Site "https://www.chess.com"]

[Event "Titled Tuesday Blitz June 28 Early 2022"]
[White "Kapitsyn, Mark"]
[Black "Jaskolka, Tomasz"]
[WhiteFideId "4116240"]
[BlackFideId "1170791"]
[WhiteElo "2283"]
[BlackElo "2073"]
[Result "0-1"]
[Round "03"]
[TimeControl "180+1"]
[Date "2022.06.28"]
[WhiteClock "0:00:11"]
[BlackClock "0:01:05"]

1. e4 {[%clk 0:03:00]}  c5 {[%clk 0:02:59]} 2. c3 {[%clk 0:03:00]}  Nf6 {[%clk 0:02:58]} 3. e5 {[%clk 0:03:01]}  Nd5 {[%clk 0:02:59]} 4. d4 {[%clk 0:03:01]}  cxd4 {[%clk 0:02:59]} 5. Nf3 {[%clk 0:03:02]}  e6 {[%clk 0:02:58]} 6. cxd4 {[%clk 0:03:02]}  Nc6 {[%clk 0:02:59]} 7. Bc4 {[%clk 0:03:03]}  d6 {[%clk 0:02:58]} 8. Qe2 {[%clk 0:02:57]}  Nb6 {[%clk 0:02:57]} 9. Bd3 {[%clk 0:02:54]}  dxe5 {[%clk 0:02:57]} 10. dxe5 {[%clk 0:02:45]}  Bd7 {[%clk 0:02:56]} 11. O-O {[%clk 0:02:44]}  h6 {[%clk 0:02:53]} 12. Nc3 {[%clk 0:02:38]}  Be7 {[%clk 0:02:52]} 13. Rd1 {[%clk 0:02:33]}  Nb4 {[%clk 0:02:52]} 14. Bb1 {[%clk 0:02:32]}  N4d5 {[%clk 0:02:52]} 15. Bd2 {[%clk 0:01:50]}  Rc8 {[%clk 0:02:47]} 16. a3 {[%clk 0:01:43]}  a6 {[%clk 0:02:40]} 17. Be4 {[%clk 0:01:35]}  Bc6 {[%clk 0:02:40]} 18. Rac1 {[%clk 0:01:31]}  Qd7 {[%clk 0:02:35]} 19. h4 {[%clk 0:01:25]}  O-O {[%clk 0:02:19]} 20. Bb1 {[%clk 0:01:18]}  Nxc3 {[%clk 0:01:52]} 21. Bxc3 {[%clk 0:01:18]}  Bxf3 {[%clk 0:01:52]} 22. Qxf3 {[%clk 0:01:05]}  Qa4 {[%clk 0:01:47]} 23. Qd3 {[%clk 0:00:57]}  g6 {[%clk 0:01:47]} 24. h5 {[%clk 0:00:57]}  Rfd8 {[%clk 0:01:47]} 25. Qe2 {[%clk 0:00:51]}  g5 {[%clk 0:01:22]} 26. b3 {[%clk 0:00:41]}  Qf4 {[%clk 0:01:18]} 27. Bd2 {[%clk 0:00:30]}  Rxc1 {[%clk 0:01:11]} 28. Bxf4 {[%clk 0:00:21]}  Rdxd1+ {[%clk 0:01:08]} 29. Kh2 {[%clk 0:00:21]}  gxf4 {[%clk 0:01:09]} 30. Qg4+ {[%clk 0:00:19]}  Bg5 {[%clk 0:01:06]} 31. g3 {[%clk 0:00:10]}  Rxb1 {[%clk 0:01:04]} 32. gxf4 {[%clk 0:00:11]}  Rh1+ {[%clk 0:01:04]} 33. Kg2 {[%clk 0:00:11]}  Rbg1+ {[%clk 0:01:05]} 0-1


[Site "https://www.chess.com"]

[Event "Titled Tuesday Blitz June 28 Early 2022"]
[White "Kjartansson, David"]
[Black "Ning, Kaiyu"]
[WhiteFideId "2301130"]
[BlackFideId "8614750"]
[WhiteElo "2382"]
[BlackElo "2013"]
[Result "1-0"]
[Round "03"]
[TimeControl "180+1"]
[Date "2022.06.28"]
[WhiteClock "0:01:28"]
[BlackClock "0:00:39"]

1. d4 {[%clk 0:03:00]}  Nf6 {[%clk 0:02:59]} 2. Nc3 {[%clk 0:03:01]}  d5 {[%clk 0:02:57]} 3. Bf4 {[%clk 0:03:00]}  c5 {[%clk 0:02:52]} 4. e3 {[%clk 0:02:54]}  a6 {[%clk 0:02:50]} 5. dxc5 {[%clk 0:02:51]}  Nc6 {[%clk 0:02:41]} 6. a3 {[%clk 0:02:48]}  e5 {[%clk 0:02:40]} 7. Bg5 {[%clk 0:02:47]}  Be6 {[%clk 0:02:38]} 8. b4 {[%clk 0:02:44]}  Be7 {[%clk 0:02:35]} 9. Be2 {[%clk 0:02:42]}  h6 {[%clk 0:02:28]} 10. Bxf6 {[%clk 0:02:42]}  Bxf6 {[%clk 0:02:28]} 11. Qd2 {[%clk 0:02:38]}  e4 {[%clk 0:02:11]} 12. Rd1 {[%clk 0:02:37]}  Be5 {[%clk 0:01:59]} 13. Nxd5 {[%clk 0:02:32]}  O-O {[%clk 0:01:32]} 14. c4 {[%clk 0:02:27]}  Qg5 {[%clk 0:01:29]} 15. g3 {[%clk 0:02:06]}  Rad8 {[%clk 0:01:30]} 16. h4 {[%clk 0:02:00]}  Qg6 {[%clk 0:01:14]} 17. Qc2 {[%clk 0:01:52]}  f5 {[%clk 0:01:05]} 18. Nh3 {[%clk 0:01:49]}  Qf7 {[%clk 0:00:52]} 19. Nhf4 {[%clk 0:01:48]}  Bf6 {[%clk 0:00:39]} 20. Bh5 {[%clk 0:01:28]} 1-0


[Site "https://www.chess.com"]

[Event "Titled Tuesday Blitz June 28 Early 2022"]
[White "Large, Peter G"]
[Black "Kucuksari, Kaan"]
[WhiteFideId "400866"]
[BlackFideId "6380166"]
[WhiteElo "2064"]
[BlackElo "2305"]
[Result "1-0"]
[Round "03"]
[TimeControl "180+1"]
[Date "2022.06.28"]
[WhiteClock "0:00:30"]
[BlackClock "0:00:20"]

1. Nf3 {[%clk 0:02:50]}  g6 {[%clk 0:02:57]} 2. b3 {[%clk 0:02:48]}  Bg7 {[%clk 0:02:55]} 3. d4 {[%clk 0:02:49]}  Nf6 {[%clk 0:02:51]} 4. Bb2 {[%clk 0:02:49]}  O-O {[%clk 0:02:52]} 5. e3 {[%clk 0:02:49]}  d6 {[%clk 0:02:52]} 6. Be2 {[%clk 0:02:48]}  Nbd7 {[%clk 0:02:53]} 7. O-O {[%clk 0:02:48]}  a5 {[%clk 0:02:50]} 8. a4 {[%clk 0:02:43]}  b6 {[%clk 0:02:50]} 9. c4 {[%clk 0:02:41]}  Bb7 {[%clk 0:02:50]} 10. Nc3 {[%clk 0:02:41]}  Ne4 {[%clk 0:02:48]} 11. Rc1 {[%clk 0:02:35]}  Nxc3 {[%clk 0:02:47]} 12. Bxc3 {[%clk 0:02:34]}  Nf6 {[%clk 0:02:47]} 13. d5 {[%clk 0:02:31]}  e5 {[%clk 0:02:41]} 14. Qc2 {[%clk 0:02:26]}  Nd7 {[%clk 0:02:30]} 15. e4 {[%clk 0:02:25]}  f5 {[%clk 0:02:30]} 16. Bd3 {[%clk 0:02:03]}  Nc5 {[%clk 0:02:27]} 17. Nd2 {[%clk 0:02:03]}  fxe4 {[%clk 0:02:18]} 18. Nxe4 {[%clk 0:02:03]}  Nxe4 {[%clk 0:02:18]} 19. Bxe4 {[%clk 0:02:02]}  Qh4 {[%clk 0:02:17]} 20. Rce1 {[%clk 0:01:54]}  Bc8 {[%clk 0:02:12]} 21. Bd2 {[%clk 0:01:49]}  Bf5 {[%clk 0:02:05]} 22. f3 {[%clk 0:01:48]}  Rf7 {[%clk 0:02:01]} 23. Be3 {[%clk 0:01:30]}  Raf8 {[%clk 0:01:58]} 24. Qd3 {[%clk 0:01:14]}  Bxe4 {[%clk 0:01:56]} 25. Qxe4 {[%clk 0:01:11]}  Qxe4 {[%clk 0:01:54]} 26. fxe4 {[%clk 0:01:10]}  h5 {[%clk 0:01:52]} 27. Rxf7 {[%clk 0:01:07]}  Rxf7 {[%clk 0:01:53]} 28. Rf1 {[%clk 0:01:07]}  Rxf1+ {[%clk 0:01:45]} 29. Kxf1 {[%clk 0:01:07]}  Kf7 {[%clk 0:01:46]} 30. Ke2 {[%clk 0:01:06]}  Bf6 {[%clk 0:01:43]} 31. Kd3 {[%clk 0:01:06]}  g5 {[%clk 0:01:42]} 32. Bd2 {[%clk 0:01:04]}  g4 {[%clk 0:01:40]} 33. b4 {[%clk 0:01:02]}  axb4 {[%clk 0:01:39]} 34. Bxb4 {[%clk 0:01:03]}  h4 {[%clk 0:01:32]} 35. h3 {[%clk 0:01:03]}  g3 {[%clk 0:01:01]} 36. Ke2 {[%clk 0:00:59]}  Ke7 {[%clk 0:00:48]} 37. Kf3 {[%clk 0:00:55]}  Kd7 {[%clk 0:00:47]} 38. Kg4 {[%clk 0:00:55]}  c6 {[%clk 0:00:41]} 39. Bd2 {[%clk 0:00:50]}  cxd5 {[%clk 0:00:38]} 40. cxd5 {[%clk 0:00:50]}  Kc7 {[%clk 0:00:32]} 41. Bg5 {[%clk 0:00:35]}  Bh8 {[%clk 0:00:25]} 42. Bxh4 {[%clk 0:00:35]}  Kb7 {[%clk 0:00:26]} 43. Bxg3 {[%clk 0:00:35]}  Ka6 {[%clk 0:00:25]} 44. Be1 {[%clk 0:00:31]}  b5 {[%clk 0:00:25]} 45. axb5+ {[%clk 0:00:30]}  Kxb5 {[%clk 0:00:26]} 46. Kf5 {[%clk 0:00:30]}  Kc4 {[%clk 0:00:20]} 47. g4 {[%clk 0:00:31]}  Kd3 {[%clk 0:00:20]} 48. h4 {[%clk 0:00:31]}  Ke2 {[%clk 0:00:20]} 49. Bb4 {[%clk 0:00:30]} 1-0


[Site "https://www.chess.com"]